[Event "Titled Tuesday Blitz November 01 Late 2022"]
[White "Aizpurua, Patrick Emilio"]
[Black "Kaplan, Avi Harrison"]
[WhiteFideId "6600522"]
[BlackFideId "30934559"]
[WhiteElo "2378"]
[BlackElo "1983"]
[Result "1-0"]
[Round "03"]
[TimeControl "180+1"]
[Date "2022.11.02"]
[WhiteClock "0:00:38"]
[BlackClock "0:00:02"]

1. d4 {[%clk 0:03:00]}  Nf6 {[%clk 0:02:59]} 2. c4 {[%clk 0:03:00]}  c5 {[%clk 0:03:00]} 3. d5 {[%clk 0:03:00]}  e6 {[%clk 0:03:01]} 4. Nc3 {[%clk 0:03:00]}  exd5 {[%clk 0:03:01]} 5. cxd5 {[%clk 0:03:01]}  d6 {[%clk 0:03:02]} 6. e4 {[%clk 0:03:01]}  g6 {[%clk 0:03:03]} 7. Bd3 {[%clk 0:02:59]}  Bg7 {[%clk 0:03:01]} 8. Nge2 {[%clk 0:02:59]}  O-O {[%clk 0:02:59]} 9. O-O {[%clk 0:03:00]}  Na6 {[%clk 0:02:58]} 10. h3 {[%clk 0:02:57]}  Nc7 {[%clk 0:02:58]} 11. a4 {[%clk 0:02:54]}  b6 {[%clk 0:02:58]} 12. Be3 {[%clk 0:02:54]}  a6 {[%clk 0:02:55]} 13. Rb1 {[%clk 0:02:49]}  Re8 {[%clk 0:02:55]} 14. b4 {[%clk 0:02:47]}  Bd7 {[%clk 0:02:43]} 15. a5 {[%clk 0:02:38]}  cxb4 {[%clk 0:02:28]} 16. Rxb4 {[%clk 0:02:37]}  bxa5 {[%clk 0:02:28]} 17. Rb1 {[%clk 0:02:34]}  Rb8 {[%clk 0:01:56]} 18. Bb6 {[%clk 0:02:33]}  Qc8 {[%clk 0:01:55]} 19. Bxa5 {[%clk 0:02:32]}  Nb5 {[%clk 0:01:49]} 20. Rc1 {[%clk 0:02:26]}  Qb7 {[%clk 0:01:32]} 21. Kh1 {[%clk 0:01:58]}  Rec8 {[%clk 0:01:07]} 22. Rb1 {[%clk 0:01:53]}  Nxc3 {[%clk 0:01:05]} 23. Bxc3 {[%clk 0:01:44]}  Qa8 {[%clk 0:00:54]} 24. Qd2 {[%clk 0:01:38]}  Bb5 {[%clk 0:00:47]} 25. Bxb5 {[%clk 0:01:29]}  axb5 {[%clk 0:00:42]} 26. f3 {[%clk 0:01:29]}  Nh5 {[%clk 0:00:39]} 27. Bxg7 {[%clk 0:01:29]}  Nxg7 {[%clk 0:00:37]} 28. Nd4 {[%clk 0:01:28]}  Nh5 {[%clk 0:00:36]} 29. Kh2 {[%clk 0:01:27]}  Qa4 {[%clk 0:00:31]} 30. Nc6 {[%clk 0:01:19]}  Rb7 {[%clk 0:00:28]} 31. Ra1 {[%clk 0:01:12]}  Qb3 {[%clk 0:00:16]} 32. Rfb1 {[%clk 0:01:12]}  Qc4 {[%clk 0:00:16]} 33. Rb4 {[%clk 0:01:12]}  Qc5 {[%clk 0:00:16]} 34. Rc1 {[%clk 0:01:11]}  Qb6 {[%clk 0:00:16]} 35. Ne7+ {[%clk 0:01:11]}  Rxe7 {[%clk 0:00:17]} 36. Rxc8+ {[%clk 0:01:10]}  Kg7 {[%clk 0:00:17]} 37. Qd4+ {[%clk 0:01:10]}  Qxd4 {[%clk 0:00:17]} 38. Rxd4 {[%clk 0:01:11]}  Rb7 {[%clk 0:00:17]} 39. Rb4 {[%clk 0:01:11]}  Nf4 {[%clk 0:00:17]} 40. Rc6 {[%clk 0:01:08]}  Nd3 {[%clk 0:00:17]} 41. Rb1 {[%clk 0:01:08]}  b4 {[%clk 0:00:10]} 42. Rxd6 {[%clk 0:01:05]}  b3 {[%clk 0:00:11]} 43. Rc6 {[%clk 0:01:04]}  Ne5 {[%clk 0:00:10]} 44. Rc3 {[%clk 0:01:02]}  b2 {[%clk 0:00:09]} 45. f4 {[%clk 0:01:02]}  Nd7 {[%clk 0:00:05]} 46. Rc2 {[%clk 0:01:00]}  Rb4 {[%clk 0:00:05]} 47. Re2 {[%clk 0:01:00]}  Nc5 {[%clk 0:00:06]} 48. Rbxb2 {[%clk 0:00:59]}  Rxb2 {[%clk 0:00:06]} 49. Rxb2 {[%clk 0:00:59]}  Nxe4 {[%clk 0:00:07]} 50. g3 {[%clk 0:00:57]}  Kf6 {[%clk 0:00:07]} 51. Rb6+ {[%clk 0:00:56]}  Ke7 {[%clk 0:00:07]} 52. Rb7+ {[%clk 0:00:56]}  Kf6 {[%clk 0:00:06]} 53. Kg2 {[%clk 0:00:55]}  Nc5 {[%clk 0:00:06]} 54. Rc7 {[%clk 0:00:53]}  Ne4 {[%clk 0:00:02]} 55. Kf3 {[%clk 0:00:51]}  Nd2+ {[%clk 0:00:03]} 56. Ke3 {[%clk 0:00:50]}  Nb3 {[%clk 0:00:04]} 57. Rc3 {[%clk 0:00:46]}  Na5 {[%clk 0:00:03]} 58. Kd4 {[%clk 0:00:45]}  Nb7 {[%clk 0:00:04]} 59. Rc6+ {[%clk 0:00:43]}  Kf5 {[%clk 0:00:04]} 60. Ke3 {[%clk 0:00:37]}  h5 {[%clk 0:00:03]} 61. Kf3 {[%clk 0:00:37]}  Nd6 {[%clk 0:00:01]} 62. Rxd6 {[%clk 0:00:37]}  g5 {[%clk 0:00:02]} 63. g4+ {[%clk 0:00:37]}  hxg4+ {[%clk 0:00:02]} 64. hxg4# {[%clk 0:00:38]} 1-0


[Site "https://www.chess.com"]

[Event "Titled Tuesday Blitz November 01 Late 2022"]
[White "Aldokhin, Ivan"]
[Black "Silva Lucena, Cristian"]
[WhiteFideId "24115720"]
[BlackFideId "2232588"]
[WhiteElo "2313"]
[BlackElo "2223"]
[Result "0-1"]
[Round "03"]
[TimeControl "180+1"]
[Date "2022.11.02"]
[WhiteClock "0:00:03"]
[BlackClock "0:01:13"]

1. e4 {[%clk 0:02:51]}  c5 {[%clk 0:02:58]} 2. Nf3 {[%clk 0:02:51]}  e6 {[%clk 0:02:56]} 3. d4 {[%clk 0:02:52]}  cxd4 {[%clk 0:02:56]} 4. Nxd4 {[%clk 0:02:53]}  Nf6 {[%clk 0:02:55]} 5. Nc3 {[%clk 0:02:53]}  d6 {[%clk 0:02:55]} 6. g4 {[%clk 0:02:53]}  h6 {[%clk 0:02:55]} 7. Bg2 {[%clk 0:02:49]}  Nc6 {[%clk 0:02:45]} 8. Nxc6 {[%clk 0:02:46]}  bxc6 {[%clk 0:02:45]} 9. e5 {[%clk 0:02:47]}  Nd5 {[%clk 0:02:45]} 10. Ne4 {[%clk 0:02:36]}  dxe5 {[%clk 0:02:35]} 11. O-O {[%clk 0:02:22]}  Ba6 {[%clk 0:02:27]} 12. Re1 {[%clk 0:02:17]}  Be7 {[%clk 0:02:26]} 13. c4 {[%clk 0:02:04]}  Bxc4 {[%clk 0:02:23]} 14. Qc2 {[%clk 0:02:03]}  Nb6 {[%clk 0:02:15]} 15. b3 {[%clk 0:01:19]}  Bd5 {[%clk 0:02:08]} 16. Bb2 {[%clk 0:01:19]}  f6 {[%clk 0:01:55]} 17. Nc5 {[%clk 0:00:30]}  Bxc5 {[%clk 0:01:44]} 18. Qxc5 {[%clk 0:00:24]}  Qe7 {[%clk 0:01:44]} 19. Qa5 {[%clk 0:00:21]}  Kf7 {[%clk 0:01:35]} 20. Ba3 {[%clk 0:00:20]}  Qb7 {[%clk 0:01:33]} 21. Bf1 {[%clk 0:00:19]}  h5 {[%clk 0:01:31]} 22. g5 {[%clk 0:00:18]}  h4 {[%clk 0:01:29]} 23. Rad1 {[%clk 0:00:10]}  Rh5 {[%clk 0:01:28]} 24. f4 {[%clk 0:00:07]}  exf4 {[%clk 0:01:26]} 25. gxf6 {[%clk 0:00:07]}  gxf6 {[%clk 0:01:24]} 26. Qb4 {[%clk 0:00:07]}  Rg8+ {[%clk 0:01:23]} 27. Kf2 {[%clk 0:00:07]}  Qc7 {[%clk 0:01:20]} 28. Bh3 {[%clk 0:00:06]}  f3 {[%clk 0:01:20]} 29. Rxd5 {[%clk 0:00:03]}  Qxh2+ {[%clk 0:01:14]} 30. Ke3 {[%clk 0:00:03]}  Nxd5+ {[%clk 0:01:13]} 0-1


[Site "https://www.chess.com"]

[Event "Titled Tuesday Blitz November 01 Late 2022"]
[White "Ambartsumova, Karina"]
[Black "Aguilar, Juan"]
[WhiteFideId "4166299"]
[BlackFideId "3800091"]
[WhiteElo "2299"]
[BlackElo "2430"]
[Result "1-0"]
[Round "03"]
[TimeControl "180+1"]
[Date "2022.11.02"]
[WhiteClock "0:01:05"]
[BlackClock "0:00:51"]

1. d4 {[%clk 0:03:00]}  Nf6 {[%clk 0:02:59]} 2. c4 {[%clk 0:03:00]}  g6 {[%clk 0:02:58]} 3. Nc3 {[%clk 0:02:59]}  d5 {[%clk 0:02:58]} 4. cxd5 {[%clk 0:02:54]}  Nxd5 {[%clk 0:02:59]} 5. g3 {[%clk 0:02:53]}  Bg7 {[%clk 0:02:55]} 6. Bg2 {[%clk 0:02:53]}  Nb6 {[%clk 0:02:52]} 7. Nf3 {[%clk 0:02:48]}  Nc6 {[%clk 0:02:49]} 8. d5 {[%clk 0:02:24]}  Bxc3+ {[%clk 0:02:44]} 9. bxc3 {[%clk 0:02:25]}  Qxd5 {[%clk 0:02:43]} 10. Qc2 {[%clk 0:01:45]}  Bf5 {[%clk 0:02:34]} 11. Qb2 {[%clk 0:01:45]}  O-O {[%clk 0:01:42]} 12. Bh6 {[%clk 0:01:41]}  Nc4 {[%clk 0:01:20]} 13. Qxb7 {[%clk 0:01:27]}  Rab8 {[%clk 0:01:06]} 14. Qxc7 {[%clk 0:01:23]}  Rfc8 {[%clk 0:01:03]} 15. Qf4 {[%clk 0:01:18]}  e5 {[%clk 0:01:03]} 16. Qh4 {[%clk 0:01:17]}  e4 {[%clk 0:00:51]} 17. Qf6 {[%clk 0:01:05]} 1-0


[Site "https://www.chess.com"]

[Event "Titled Tuesday Blitz November 01 Late 2022"]
[White "Annaberdiyev, Babageldi"]
[Black "Garayev, Kanan"]
[WhiteFideId "14000385"]
[BlackFideId "13406671"]
[WhiteElo "2332"]
[BlackElo "2244"]
[Result "1-0"]
[Round "03"]
[TimeControl "180+1"]
[Date "2022.11.02"]
[WhiteClock "0:01:10"]
[BlackClock "0:00:36"]

1. e4 {[%clk 0:02:57]}  c5 {[%clk 0:02:58]} 2. Nf3 {[%clk 0:02:54]}  Nf6 {[%clk 0:02:59]} 3. d3 {[%clk 0:02:54]}  Nc6 {[%clk 0:02:58]} 4. Nbd2 {[%clk 0:02:53]}  d5 {[%clk 0:02:58]} 5. g3 {[%clk 0:02:53]}  g6 {[%clk 0:02:59]} 6. Bg2 {[%clk 0:02:52]}  Bg7 {[%clk 0:03:00]} 7. O-O {[%clk 0:02:52]}  O-O {[%clk 0:02:57]} 8. Re1 {[%clk 0:02:53]}  e5 {[%clk 0:02:57]} 9. c3 {[%clk 0:02:38]}  Re8 {[%clk 0:02:56]} 10. a4 {[%clk 0:02:30]}  h6 {[%clk 0:02:52]} 11. h3 {[%clk 0:02:30]}  b6 {[%clk 0:02:49]} 12. exd5 {[%clk 0:02:26]}  Nxd5 {[%clk 0:02:49]} 13. Nc4 {[%clk 0:02:27]}  Bf5 {[%clk 0:02:46]} 14. g4 {[%clk 0:02:24]}  Bc8 {[%clk 0:02:46]} 15. Qb3 {[%clk 0:02:15]}  Bb7 {[%clk 0:02:38]} 16. a5 {[%clk 0:02:10]}  Rb8 {[%clk 0:02:35]} 17. axb6 {[%clk 0:02:11]}  axb6 {[%clk 0:02:35]} 18. Be3 {[%clk 0:02:07]}  Ba8 {[%clk 0:02:27]} 19. Nfd2 {[%clk 0:02:04]}  b5 {[%clk 0:02:03]} 20. Rxa8 {[%clk 0:01:56]}  Rxa8 {[%clk 0:01:48]} 21. Qxb5 {[%clk 0:01:56]}  Nce7 {[%clk 0:01:41]} 22. Bxc5 {[%clk 0:01:53]}  Rb8 {[%clk 0:01:38]} 23. Qa6 {[%clk 0:01:49]}  Nf4 {[%clk 0:01:37]} 24. Bd6 {[%clk 0:01:46]}  Nxg2 {[%clk 0:01:32]} 25. Kxg2 {[%clk 0:01:47]}  Ra8 {[%clk 0:01:31]} 26. Qb7 {[%clk 0:01:44]}  h5 {[%clk 0:01:17]} 27. f3 {[%clk 0:01:40]}  hxg4 {[%clk 0:01:15]} 28. hxg4 {[%clk 0:01:40]}  Rc8 {[%clk 0:01:14]} 29. Ra1 {[%clk 0:01:36]}  Nc6 {[%clk 0:01:04]} 30. Ra6 {[%clk 0:01:35]}  Nb8 {[%clk 0:00:59]} 31. Ra7 {[%clk 0:01:33]}  Qf6 {[%clk 0:01:00]} 32. Ne4 {[%clk 0:01:25]}  Qf4 {[%clk 0:00:55]} 33. Nb6 {[%clk 0:01:17]}  Rcd8 {[%clk 0:00:44]} 34. Nd5 {[%clk 0:01:16]}  Rd7 {[%clk 0:00:37]} 35. Nxf4 {[%clk 0:01:13]}  Rxb7 {[%clk 0:00:38]} 36. Rxb7 {[%clk 0:01:14]}  Nc6 {[%clk 0:00:37]} 37. Nd5 {[%clk 0:01:13]}  Ra8 {[%clk 0:00:36]} 38. Rb6 {[%clk 0:01:10]} 1-0


[Site "https://www.chess.com"]

[Event "Titled Tuesday Blitz November 01 Late 2022"]
[White "Ansh M Shah"]
[Black "Araujo, Everson De Moura"]
[WhiteFideId "25033379"]
[BlackFideId "22737197"]
[WhiteElo "2084"]
[BlackElo "1995"]
[Result "1-0"]
[Round "03"]
[TimeControl "180+1"]
[Date "2022.11.02"]
[WhiteClock "0:01:13"]
[BlackClock "0:00:14"]

1. d4 {[%clk 0:03:00]}  Nf6 {[%clk 0:02:58]} 2. c4 {[%clk 0:03:01]}  e6 {[%clk 0:02:57]} 3. g3 {[%clk 0:03:02]}  Bb4+ {[%clk 0:02:53]} 4. Nd2 {[%clk 0:03:01]}  O-O {[%clk 0:02:50]} 5. Bg2 {[%clk 0:03:00]}  d5 {[%clk 0:02:51]} 6. Nf3 {[%clk 0:02:59]}  b6 {[%clk 0:02:42]} 7. O-O {[%clk 0:02:58]}  Bb7 {[%clk 0:02:41]} 8. Ne5 {[%clk 0:02:58]}  Nbd7 {[%clk 0:02:36]} 9. a3 {[%clk 0:02:58]}  Bd6 {[%clk 0:02:36]} 10. f4 {[%clk 0:02:57]}  c5 {[%clk 0:02:34]} 11. cxd5 {[%clk 0:02:55]}  Nxd5 {[%clk 0:02:28]} 12. Ne4 {[%clk 0:02:52]}  Be7 {[%clk 0:02:25]} 13. Nxd7 {[%clk 0:02:47]}  Qxd7 {[%clk 0:02:24]} 14. dxc5 {[%clk 0:02:48]}  bxc5 {[%clk 0:02:22]} 15. Be3 {[%clk 0:02:45]}  Qb5 {[%clk 0:02:16]} 16. Nc3 {[%clk 0:02:36]}  Nxc3 {[%clk 0:02:12]} 17. bxc3 {[%clk 0:02:37]}  Bxg2 {[%clk 0:02:12]} 18. Kxg2 {[%clk 0:02:37]}  Rfd8 {[%clk 0:02:09]} 19. Qc2 {[%clk 0:02:37]}  Bf6 {[%clk 0:01:47]} 20. Rab1 {[%clk 0:02:33]}  Qc4 {[%clk 0:01:47]} 21. f5 {[%clk 0:02:24]}  exf5 {[%clk 0:01:36]} 22. Rxf5 {[%clk 0:02:22]}  Rd5 {[%clk 0:01:31]} 23. Rbf1 {[%clk 0:02:17]}  Re8 {[%clk 0:01:30]} 24. R1f3 {[%clk 0:02:10]}  Rxf5 {[%clk 0:01:22]} 25. Qxf5 {[%clk 0:02:11]}  Qxe2+ {[%clk 0:01:22]} 26. Bf2 {[%clk 0:02:09]}  c4 {[%clk 0:01:10]} 27. Qd7 {[%clk 0:02:04]}  h5 {[%clk 0:01:06]} 28. h4 {[%clk 0:02:03]}  a5 {[%clk 0:00:57]} 29. Qb5 {[%clk 0:01:57]}  Re5 {[%clk 0:00:42]} 30. Qb8+ {[%clk 0:01:50]}  Kh7 {[%clk 0:00:40]} 31. Qc7 {[%clk 0:01:43]}  Kg6 {[%clk 0:00:32]} 32. Qb7 {[%clk 0:01:26]}  Qa2 {[%clk 0:00:23]} 33. Qc6 {[%clk 0:01:19]}  Qxa3 {[%clk 0:00:19]} 34. Qxc4 {[%clk 0:01:19]}  Qb2 {[%clk 0:00:16]} 35. Qd3+ {[%clk 0:01:18]}  Kh6 {[%clk 0:00:15]} 36. Kh3 {[%clk 0:01:17]}  Qe2 {[%clk 0:00:14]} 37. Be3+ {[%clk 0:01:16]}  g5 {[%clk 0:00:14]} 38. Qxe2 {[%clk 0:01:13]} 1-0


[Site "https://www.chess.com"]

[Event "Titled Tuesday Blitz November 01 Late 2022"]
[White "Arbunic Castro, Giovanna"]
[Black "Rangel, Daniel"]
[WhiteFideId "3400549"]
[BlackFideId "2124475"]
[WhiteElo "1858"]
[BlackElo "2225"]
[Result "0-1"]
[Round "03"]
[TimeControl "180+1"]
[Date "2022.11.02"]
[WhiteClock "0:00:07"]
[BlackClock "0:00:43"]

1. e4 {[%clk 0:03:00]}  c5 {[%clk 0:02:59]} 2. g3 {[%clk 0:02:59]}  g6 {[%clk 0:02:59]} 3. Bg2 {[%clk 0:02:58]}  Bg7 {[%clk 0:02:59]} 4. Ne2 {[%clk 0:02:58]}  Nc6 {[%clk 0:02:58]} 5. c3 {[%clk 0:02:57]}  d6 {[%clk 0:02:56]} 6. O-O {[%clk 0:02:56]}  e5 {[%clk 0:02:56]} 7. d3 {[%clk 0:02:54]}  Nge7 {[%clk 0:02:55]} 8. Be3 {[%clk 0:02:53]}  Bg4 {[%clk 0:02:54]} 9. f3 {[%clk 0:02:51]}  Be6 {[%clk 0:02:51]} 10. d4 {[%clk 0:02:50]}  exd4 {[%clk 0:02:46]} 11. cxd4 {[%clk 0:02:49]}  Bc4 {[%clk 0:02:41]} 12. dxc5 {[%clk 0:02:23]}  dxc5 {[%clk 0:02:40]} 13. Qc2 {[%clk 0:02:14]}  Bd3 {[%clk 0:02:21]} 14. Qd2 {[%clk 0:02:11]}  c4 {[%clk 0:02:19]} 15. Nbc3 {[%clk 0:02:06]}  O-O {[%clk 0:02:17]} 16. Rfd1 {[%clk 0:01:54]}  f5 {[%clk 0:02:13]} 17. Nf4 {[%clk 0:01:49]}  fxe4 {[%clk 0:01:57]} 18. fxe4 {[%clk 0:01:45]}  Ne5 {[%clk 0:01:52]} 19. Ne6 {[%clk 0:01:41]}  Qd7 {[%clk 0:01:49]} 20. Nxf8 {[%clk 0:01:37]}  Rxf8 {[%clk 0:01:50]} 21. Nd5 {[%clk 0:01:27]}  Nxd5 {[%clk 0:01:35]} 22. exd5 {[%clk 0:01:24]}  Ng4 {[%clk 0:01:35]} 23. Bc5 {[%clk 0:00:58]}  Rc8 {[%clk 0:01:30]} 24. h3 {[%clk 0:00:48]}  Rxc5 {[%clk 0:01:24]} 25. hxg4 {[%clk 0:00:46]}  Bd4+ {[%clk 0:01:20]} 26. Kh2 {[%clk 0:00:44]}  Qxg4 {[%clk 0:01:19]} 27. Qf4 {[%clk 0:00:39]}  Qxf4 {[%clk 0:01:12]} 28. gxf4 {[%clk 0:00:38]}  Bxb2 {[%clk 0:01:12]} 29. d6 {[%clk 0:00:24]}  Bxa1 {[%clk 0:00:59]} 30. Rxa1 {[%clk 0:00:22]}  Rc8 {[%clk 0:00:54]} 31. Bxb7 {[%clk 0:00:19]}  Rd8 {[%clk 0:00:54]} 32. Bd5+ {[%clk 0:00:15]}  Kg7 {[%clk 0:00:52]} 33. Rc1 {[%clk 0:00:14]}  Rxd6 {[%clk 0:00:50]} 34. Bxc4 {[%clk 0:00:14]}  Bxc4 {[%clk 0:00:51]} 35. Rxc4 {[%clk 0:00:13]}  Rd2+ {[%clk 0:00:51]} 36. Kg3 {[%clk 0:00:13]}  Rxa2 {[%clk 0:00:51]} 37. Rc6 {[%clk 0:00:12]}  a5 {[%clk 0:00:51]} 38. Kg4 {[%clk 0:00:12]}  h5+ {[%clk 0:00:49]} 39. Kf3 {[%clk 0:00:09]}  a4 {[%clk 0:00:45]} 40. Ra6 {[%clk 0:00:08]}  a3 {[%clk 0:00:45]} 41. Kg3 {[%clk 0:00:07]}  Ra1 {[%clk 0:00:45]} 42. Kh4 {[%clk 0:00:07]}  a2 {[%clk 0:00:43]} 0-1


[Site "https://www.chess.com"]

[Event "Titled Tuesday Blitz November 01 Late 2022"]
[White "Averjanov, Alexey"]
[Black "Sivakumar, Shaaketh"]
[WhiteFideId "14109867"]
[BlackFideId "30940176"]
[WhiteElo "2660"]
[BlackElo "2174"]
[Result "1-0"]
[Round "03"]
[TimeControl "180+1"]
[Date "2022.11.02"]
[WhiteClock "0:02:01"]
[BlackClock "0:01:30"]

1. d4 {[%clk 0:03:00]}  e6 {[%clk 0:03:00]} 2. c4 {[%clk 0:03:00]}  b6 {[%clk 0:02:48]} 3. Nf3 {[%clk 0:03:00]}  Bb7 {[%clk 0:02:48]} 4. Nbd2 {[%clk 0:02:59]}  Bb4 {[%clk 0:02:48]} 5. Qc2 {[%clk 0:02:53]}  f5 {[%clk 0:02:47]} 6. g3 {[%clk 0:02:53]}  Nf6 {[%clk 0:02:42]} 7. Bg2 {[%clk 0:02:53]}  O-O {[%clk 0:02:38]} 8. O-O {[%clk 0:02:52]}  d6 {[%clk 0:02:38]} 9. b3 {[%clk 0:02:42]}  Bxd2 {[%clk 0:02:37]} 10. Qxd2 {[%clk 0:02:41]}  Ne4 {[%clk 0:02:37]} 11. Qc2 {[%clk 0:02:41]}  Nd7 {[%clk 0:02:37]} 12. Bb2 {[%clk 0:02:37]}  Qe7 {[%clk 0:02:37]} 13. d5 {[%clk 0:02:36]}  e5 {[%clk 0:02:36]} 14. Nh4 {[%clk 0:02:36]}  Ndc5 {[%clk 0:02:15]} 15. Nxf5 {[%clk 0:02:34]}  Rxf5 {[%clk 0:02:12]} 16. Bxe4 {[%clk 0:02:34]}  Nxe4 {[%clk 0:02:13]} 17. Qxe4 {[%clk 0:02:35]}  Raf8 {[%clk 0:02:12]} 18. f4 {[%clk 0:02:31]}  Qf7 {[%clk 0:02:13]} 19. e3 {[%clk 0:02:30]}  Bc8 {[%clk 0:02:12]} 20. Qd3 {[%clk 0:02:20]}  Qg6 {[%clk 0:02:05]} 21. Qd2 {[%clk 0:02:09]}  h5 {[%clk 0:01:44]} 22. Qg2 {[%clk 0:02:05]}  exf4 {[%clk 0:01:30]} 23. gxf4 {[%clk 0:02:02]}  Qe8 {[%clk 0:01:30]} 24. Qxg7# {[%clk 0:02:01]} 1-0


[Site "https://www.chess.com"]

[Event "Titled Tuesday Blitz November 01 Late 2022"]
[White "Azarov, Sergei"]
[Black "Potapova, Margarita"]
[WhiteFideId "13501470"]
[BlackFideId "14126869"]
[WhiteElo "2494"]
[BlackElo "2150"]
[Result "1-0"]
[Round "03"]
[TimeControl "180+1"]
[Date "2022.11.02"]
[WhiteClock "0:00:20"]
[BlackClock "0:01:02"]

1. e4 {[%clk 0:03:00]}  e5 {[%clk 0:02:59]} 2. Nf3 {[%clk 0:03:01]}  Nc6 {[%clk 0:02:59]} 3. Bb5 {[%clk 0:03:01]}  Nf6 {[%clk 0:03:00]} 4. O-O {[%clk 0:03:00]}  Nxe4 {[%clk 0:03:00]} 5. d4 {[%clk 0:03:01]}  Nd6 {[%clk 0:03:00]} 6. dxe5 {[%clk 0:03:01]}  Nxb5 {[%clk 0:03:00]} 7. a4 {[%clk 0:03:02]}  Nbd4 {[%clk 0:03:01]} 8. Nxd4 {[%clk 0:03:02]}  Nxd4 {[%clk 0:03:02]} 9. Qxd4 {[%clk 0:03:03]}  d5 {[%clk 0:03:02]} 10. Qd3 {[%clk 0:03:03]}  c6 {[%clk 0:02:53]} 11. a5 {[%clk 0:03:03]}  g6 {[%clk 0:02:49]} 12. Be3 {[%clk 0:02:59]}  Be7 {[%clk 0:02:48]} 13. Bh6 {[%clk 0:02:55]}  Bg5 {[%clk 0:02:40]} 14. Bxg5 {[%clk 0:02:30]}  Qxg5 {[%clk 0:02:40]} 15. f4 {[%clk 0:02:08]}  Qe7 {[%clk 0:02:40]} 16. Nd2 {[%clk 0:02:06]}  O-O {[%clk 0:02:38]} 17. Nf3 {[%clk 0:02:05]}  Bf5 {[%clk 0:02:38]} 18. Qd2 {[%clk 0:01:58]}  Qc5+ {[%clk 0:02:37]} 19. Nd4 {[%clk 0:01:56]}  Be4 {[%clk 0:02:35]} 20. c3 {[%clk 0:01:45]}  Rae8 {[%clk 0:02:31]} 21. b4 {[%clk 0:01:35]}  Qe7 {[%clk 0:02:29]} 22. Rae1 {[%clk 0:01:35]}  f6 {[%clk 0:02:24]} 23. a6 {[%clk 0:01:27]}  fxe5 {[%clk 0:02:22]} 24. fxe5 {[%clk 0:01:27]}  Qxe5 {[%clk 0:02:16]} 25. axb7 {[%clk 0:01:18]}  Qc7 {[%clk 0:02:15]} 26. Rxf8+ {[%clk 0:01:04]}  Rxf8 {[%clk 0:02:16]} 27. Ne6 {[%clk 0:00:57]}  Qb6+ {[%clk 0:02:13]} 28. Nc5 {[%clk 0:00:56]}  Qc7 {[%clk 0:01:53]} 29. Ne6 {[%clk 0:00:45]}  Qb6+ {[%clk 0:01:52]} 30. Qd4 {[%clk 0:00:45]}  Qxd4+ {[%clk 0:01:34]} 31. cxd4 {[%clk 0:00:45]}  Rb8 {[%clk 0:01:28]} 32. Nc5 {[%clk 0:00:44]}  Kf7 {[%clk 0:01:22]} 33. Ra1 {[%clk 0:00:44]}  Ke7 {[%clk 0:01:11]} 34. Rxa7 {[%clk 0:00:44]}  Kd6 {[%clk 0:01:11]} 35. Ra8 {[%clk 0:00:43]}  Kc7 {[%clk 0:01:12]} 36. Na6+ {[%clk 0:00:35]}  Kxb7 {[%clk 0:01:11]} 37. Rxb8+ {[%clk 0:00:36]}  Kxa6 {[%clk 0:01:12]} 38. Kf2 {[%clk 0:00:33]}  Ka7 {[%clk 0:01:09]} 39. Rh8 {[%clk 0:00:26]}  h5 {[%clk 0:01:07]} 40. g3 {[%clk 0:00:24]}  Kb6 {[%clk 0:01:06]} 41. Ke3 {[%clk 0:00:24]}  Kb5 {[%clk 0:01:06]} 42. Rb8+ {[%clk 0:00:24]}  Kc4 {[%clk 0:01:07]} 43. Rb6 {[%clk 0:00:24]}  Bf5 {[%clk 0:01:04]} 44. Rxc6+ {[%clk 0:00:21]}  Kxb4 {[%clk 0:01:05]} 45. Rc5 {[%clk 0:00:22]}  Be4 {[%clk 0:01:05]} 46. Kf4 {[%clk 0:00:21]}  Kb3 {[%clk 0:01:04]} 47. Ke5 {[%clk 0:00:21]}  Kb4 {[%clk 0:01:03]} 48. h4 {[%clk 0:00:20]}  Kb3 {[%clk 0:01:02]} 49. Rxd5 {[%clk 0:00:20]} 1-0


[Site "https://www.chess.com"]